Workbook

Sheet Tabelle1 (hidden)

Sheet Tabelle2 (hidden)

Sheet Aufgabenstellung

Sheet Kalkulation
A2: Preis | B2: 25000 | D2: Menge | E2: 20
A6: Monatskalkualation für die Herstellung von Motorbooten | E6: Menge (x) | F6: Variable Kosten (Kv) | G6: Gesamt- kosten (K) | H6: Gesamt- erlöse (E) | I6: Gewinn (G)
A7: Ausbringungsmenge = Absatzmenge | E7: 0 | F7: =$B$15*E7 -> 0 | G7: =F7+$B$11 -> 80800 | H7: =$B$2*E7 -> 0 | I7: =H7-G7 -> -80800
A8: Miete | B8: 8000 | E8: =IF(OR(E7>=$E$2, E7=""),"",E7+1) -> 1 | F8: =IF(E8="","",$B$15*E8) -> 19500 | G8: =IF(E8="","",F8+$B$11) -> 100300 | H8: =IF(E8="","",$B$2*E8) -> 25000 | I8: =IF(E8="","",H8-G8) -> -75300
A9: Personalkosten | B9: 22800 | E9: 2 | F9: 39000 | G9: 119800 | H9: 50000 | I9: -69800
A10: Bankverbindlichkeiten | B10: 50000 | E10: 3 | F10: 58500 | G10: 139300 | H10: 75000 | I10: -64300
A11: Fixkosten | B11: =SUM(B8:C10) -> 80800 | E11: 4 | F11: 78000 | G11: 158800 | H11: 100000 | I11: -58800
A12: Materialkosten/Stck. | B12: 8000 | E12: 5 | F12: 97500 | G12: 178300 | H12: 125000 | I12: -53300
A13: Fertigungskosten/Stck. | B13: 10000 | E13: 6 | F13: 117000 | G13: 197800 | H13: 150000 | I13: -47800
A14: Vertriebskosten/Stck. | B14: 1500 | E14: 7 | F14: 136500 | G14: 217300 | H14: 175000 | I14: -42300
A15: Variable Stückkosten | B15: =SUM(B12:C14) -> 19500 | E15: 8 | F15: 156000 | G15: 236800 | H15: 200000 | I15: -36800
E16: 9 | F16: 156000 | G16: 236800 | H16: 225000 | I16: -11800
A17: Gewinn | B17: =B19-B18 -> 29200 | E17: 10 | F17: =IF(E17="","",$B$15*E17) -> 195000 | G17: 275800 | H17: 250000 | I17: -25800
A18: dabei Kosten | B18: =B15*E2+B11 -> 470800 | E18: 11 | F18: =IF(E18="","",$B$15*E18) -> 214500 | G18: 295300 | H18: 275000 | I18: -20300
A19: dabei Umsatz | B19: =E2*B2 -> 500000 | E19: =IF(OR(E18>=$E$2, E18=""),"",E18+1) -> 12 | F19: =IF(E19="","",$B$15*E19) -> 234000 | G19: =IF(E19="","",F19+$B$11) -> 314800 | H19: =IF(E19="","",$B$2*E19) -> 300000 | I19: =IF(E19="","",H19-G19) -> -14800
E20: 13 | F20: 253500 | G20: 334300 | H20: 325000 | I20: -9300
E21: 14 | F21: 273000 | G21: 353800 | H21: 350000 | I21: -3800
E22: 15 | F22: 292500 | G22: 373300 | H22: 375000 | I22: 1700
E23: 16 | F23: 312000 | G23: 392800 | H23: 400000 | I23: 7200
E24: 17 | F24: 331500 | G24: 412300 | H24: 425000 | I24: 12700
E25: 18 | F25: 351000 | G25: 431800 | H25: 450000 | I25: 18200
E26: 19 | F26: 370500 | G26: 451300 | H26: 475000 | I26: 23700
E27: 20 | F27: 390000 | G27: 470800 | H27: 500000 | I27: 29200
E42: =IF(OR(E41>=$E$2, E41=""),"",E41+1) ->  | G42: =IF(E42="","",F42+$B$11) ->  | H42: =IF(E42="","",$B$2*E42) ->  | I42: =IF(E42="","",H42-G42) -> 
F83: =IF(E83="","",$B$15*E83) -> 
